[Event "Early-Titled-Tuesday-Blitz-June-18-2024"]
[Site "Chess.com"]
[Date "2024.06.18"]
[Round "5"]
[White "monomita"]
[Black "jeetjain"]
[Result "1-0"]
[WhiteElo "2783"]
[BlackElo "2586"]
[TimeControl "180+1"]
[EndTime "8:58:29 PDT"]
[Termination "monomita won on time"]

1. e4 {[%clk 0:02:52.3]} 1... d6 {[%clk 0:02:54.8]} 2. Nf3 {[%clk 0:02:52.6]}
2... g6 {[%clk 0:02:54.8]} 3. d4 {[%clk 0:02:53.1]} 3... Bg7 {[%clk 0:02:53.6]}
4. Nc3 {[%clk 0:02:53.6]} 4... a6 {[%clk 0:02:53.9]} 5. a4 {[%clk 0:02:53.2]}
5... Nf6 {[%clk 0:02:50.8]} 6. Be2 {[%clk 0:02:52.8]} 6... O-O {[%clk 0:02:50]}
7. O-O {[%clk 0:02:53.2]} 7... Nbd7 {[%clk 0:02:45.8]} 8. Bg5 {[%clk 0:02:47.9]}
8... h6 {[%clk 0:02:44.2]} 9. Bh4 {[%clk 0:02:42.4]} 9... c6 {[%clk 0:02:43.9]}
10. a5 {[%clk 0:02:40.1]} 10... e5 {[%clk 0:02:38.2]} 11. dxe5 {[%clk
0:02:38.4]} 11... Nxe5 {[%clk 0:02:34.8]} 12. Nxe5 {[%clk 0:02:37.9]} 12... dxe5
{[%clk 0:02:35.7]} 13. Qxd8 {[%clk 0:02:38.3]} 13... Rxd8 {[%clk 0:02:36.6]} 14.
Rfd1 {[%clk 0:02:28.4]} 14... Be6 {[%clk 0:02:35.8]} 15. f3 {[%clk 0:02:27.8]}
15... g5 {[%clk 0:02:26.7]} 16. Bf2 {[%clk 0:02:27.7]} 16... Bf8 {[%clk
0:02:17.8]} 17. Na4 {[%clk 0:02:27.4]} 17... Rxd1+ {[%clk 0:02:11.5]} 18. Rxd1
{[%clk 0:02:25.4]} 18... Nd7 {[%clk 0:02:12.4]} 19. Bc4 {[%clk 0:02:18.2]} 19...
Bxc4 {[%clk 0:01:47]} 20. Rxd7 {[%clk 0:02:15.1]} 20... Bb5 {[%clk 0:01:43.3]}
21. Nb6 {[%clk 0:01:57.2]} 21... c5 {[%clk 0:01:40.3]} 22. Rxb7 {[%clk
0:01:42.5]} 22... Rd8 {[%clk 0:01:40.4]} 23. Be3 {[%clk 0:01:14.2]} 23... Rd1+
{[%clk 0:01:34.4]} 24. Kf2 {[%clk 0:01:14.4]} 24... c4 {[%clk 0:01:26.9]} 25.
Nd5 {[%clk 0:01:05.4]} 25... Rb1 {[%clk 0:01:19.7]} 26. Rb8 {[%clk 0:00:54.9]}
26... Kg7 {[%clk 0:01:17.7]} 27. Nc3 {[%clk 0:00:51.3]} 27... Rxb2 {[%clk
0:00:54.2]} 28. Nxb5 {[%clk 0:00:51.2]} 28... Rxc2+ {[%clk 0:00:53.3]} 29. Kg3
{[%clk 0:00:49.6]} 29... Re2 {[%clk 0:00:30.4]} 30. Bg1 {[%clk 0:00:31.5]} 30...
Rb2 {[%clk 0:00:20.5]} 31. Rb7 {[%clk 0:00:15.1]} 31... axb5 {[%clk 0:00:14.4]}
32. a6 {[%clk 0:00:15.6]} 32... Ra2 {[%clk 0:00:14.8]} 33. a7 {[%clk 0:00:16]}
33... b4 {[%clk 0:00:15.1]} 34. Rb8 {[%clk 0:00:14.4]} 34... c3 {[%clk
0:00:14.4]} 35. a8=Q {[%clk 0:00:12.8]} 35... Rxa8 {[%clk 0:00:14.6]} 36. Rxa8
{[%clk 0:00:13.1]} 36... c2 {[%clk 0:00:13.4]} 37. Be3 {[%clk 0:00:12.9]} 37...
Bc5 {[%clk 0:00:10.8]} 38. Bc1 {[%clk 0:00:08.4]} 38... b3 {[%clk 0:00:11.4]}
39. Rb8 {[%clk 0:00:08.8]} 1-0

[Event "Early-Titled-Tuesday-Blitz-June-18-2024"]
[Site "Chess.com"]
[Date "2024.06.18"]
[Round "5"]
[White "Dixit_Nikhil"]
[Black "jaramsdal"]
[Result "0-1"]
[WhiteElo "2597"]
[BlackElo "2447"]
[TimeControl "180+1"]
[EndTime "8:58:29 PDT"]
[Termination "jaramsdal won by resignation"]

1. e4 {[%clk 0:03:00.9]} 1... c5 {[%clk 0:03:00.1]} 2. Nf3 {[%clk 0:02:58.4]}
2... g6 {[%clk 0:03:00.1]} 3. d4 {[%clk 0:02:55.5]} 3... cxd4 {[%clk 0:03:01]}
4. Qxd4 {[%clk 0:02:55]} 4... Nf6 {[%clk 0:03:00.3]} 5. Bb5 {[%clk 0:02:54.6]}
5... a6 {[%clk 0:02:58.8]} 6. e5 {[%clk 0:02:52.3]} 6... Ng8 {[%clk 0:02:45.5]}
7. Bc4 {[%clk 0:02:47.7]} 7... Nc6 {[%clk 0:02:39.6]} 8. Qf4 {[%clk 0:02:46.7]}
8... e6 {[%clk 0:02:31.4]} 9. Nc3 {[%clk 0:02:44.2]} 9... d5 {[%clk 0:02:26.4]}
10. Bd3 {[%clk 0:02:29.1]} 10... Bh6 {[%clk 0:01:48.7]} 11. Qg3 {[%clk
0:02:24.6]} 11... Bxc1 {[%clk 0:01:46.4]} 12. Rxc1 {[%clk 0:02:25.5]} 12... Nb4
{[%clk 0:01:32.7]} 13. O-O {[%clk 0:02:23.8]} 13... Nxd3 {[%clk 0:01:30.7]} 14.
cxd3 {[%clk 0:02:24.7]} 14... Ne7 {[%clk 0:01:28.5]} 15. d4 {[%clk 0:02:10.7]}
15... Nf5 {[%clk 0:01:27.5]} 16. Qf4 {[%clk 0:02:08.3]} 16... h5 {[%clk
0:01:25.7]} 17. h4 {[%clk 0:02:04]} 17... Bd7 {[%clk 0:01:23.4]} 18. Ne2 {[%clk
0:01:57.8]} 18... Bb5 {[%clk 0:01:18.9]} 19. Rfe1 {[%clk 0:01:53]} 19... Bxe2
{[%clk 0:01:18.9]} 20. Rxe2 {[%clk 0:01:53.9]} 20... Rc8 {[%clk 0:01:19.2]} 21.
Rec2 {[%clk 0:01:51.8]} 21... Rxc2 {[%clk 0:01:19]} 22. Rxc2 {[%clk 0:01:52.7]}
22... O-O {[%clk 0:00:40.8]} 23. g4 {[%clk 0:01:31.4]} 23... hxg4 {[%clk
0:00:40.6]} 24. Qxg4 {[%clk 0:01:32.3]} 24... Kg7 {[%clk 0:00:22.3]} 25. h5
{[%clk 0:01:29.3]} 25... Rg8 {[%clk 0:00:22.8]} 26. hxg6 {[%clk 0:01:18.6]}
26... Kf8 {[%clk 0:00:22.8]} 27. Qh5 {[%clk 0:01:11.5]} 27... Rxg6+ {[%clk
0:00:22.3]} 28. Kf1 {[%clk 0:01:11.6]} 28... Kg7 {[%clk 0:00:18.7]} 29. Ke2
{[%clk 0:01:03.3]} 29... Qa5 {[%clk 0:00:18.6]} 30. Rc8 {[%clk 0:00:55.8]} 30...
Qb5+ {[%clk 0:00:18.3]} 31. Ke1 {[%clk 0:00:41.1]} 31... Qb4+ {[%clk 0:00:16.6]}
32. Kd1 {[%clk 0:00:36.5]} 32... Qa4+ {[%clk 0:00:16.2]} 33. b3 {[%clk
0:00:36.6]} 33... Rg1+ {[%clk 0:00:11.8]} 34. Nxg1 {[%clk 0:00:23]} 34... Qxd4+
{[%clk 0:00:11.7]} 35. Ke1 {[%clk 0:00:19.5]} 35... Qxe5+ {[%clk 0:00:11.5]} 36.
Kf1 {[%clk 0:00:19.6]} 36... Ne3+ {[%clk 0:00:11.4]} 37. fxe3 {[%clk 0:00:19.7]}
37... Qxh5 {[%clk 0:00:11.5]} 38. Ne2 {[%clk 0:00:19.6]} 38... Qf3+ {[%clk
0:00:11.3]} 39. Ke1 {[%clk 0:00:09.2]} 39... Qxe3 {[%clk 0:00:11.6]} 40. Rc3
{[%clk 0:00:09.9]} 40... Qe5 {[%clk 0:00:10.6]} 41. Rg3+ {[%clk 0:00:09.9]}
41... Kf8 {[%clk 0:00:11]} 42. Kf2 {[%clk 0:00:10.4]} 42... Qf6+ {[%clk
0:00:10.3]} 43. Rf3 {[%clk 0:00:10.4]} 43... Qa1 {[%clk 0:00:10.4]} 44. a4
{[%clk 0:00:10]} 44... Qb2 {[%clk 0:00:10.4]} 45. Kf1 {[%clk 0:00:09.5]} 45...
d4 {[%clk 0:00:10.4]} 46. Rd3 {[%clk 0:00:06]} 46... Qb1+ {[%clk 0:00:09.5]} 0-1

[Event "Early-Titled-Tuesday-Blitz-June-18-2024"]
[Site "Chess.com"]
[Date "2024.06.18"]
[Round "5"]
[White "arctic_t00"]
[Black "GM_dmitrij"]
[Result "0-1"]
[WhiteElo "2730"]
[BlackElo "3029"]
[TimeControl "180+1"]
[EndTime "8:58:31 PDT"]
[Termination "GM_dmitrij won by resignation"]

1. d4 {[%clk 0:03:00.9]} 1... Nf6 {[%clk 0:02:09.4]} 2. Nf3 {[%clk 0:03:01]}
2... e6 {[%clk 0:02:08.5]} 3. Bg5 {[%clk 0:03:01.3]} 3... h6 {[%clk 0:02:06.8]}
4. Bh4 {[%clk 0:03:01.6]} 4... c5 {[%clk 0:02:07.5]} 5. e3 {[%clk 0:03:01.6]}
5... cxd4 {[%clk 0:02:06.2]} 6. exd4 {[%clk 0:03:01.5]} 6... b6 {[%clk
0:02:06.7]} 7. Nbd2 {[%clk 0:03:00.5]} 7... Bb7 {[%clk 0:02:06.8]} 8. c3 {[%clk
0:02:59.6]} 8... Be7 {[%clk 0:02:07]} 9. Bd3 {[%clk 0:02:53.5]} 9... O-O {[%clk
0:02:07.1]} 10. O-O {[%clk 0:02:51.5]} 10... d6 {[%clk 0:02:06.5]} 11. Re1
{[%clk 0:02:51.3]} 11... Nbd7 {[%clk 0:02:06.9]} 12. a4 {[%clk 0:02:44.2]} 12...
a6 {[%clk 0:02:07.2]} 13. Nc4 {[%clk 0:02:34.2]} 13... Rc8 {[%clk 0:02:02.9]}
14. Bg3 {[%clk 0:02:31.6]} 14... Qc7 {[%clk 0:01:57]} 15. h3 {[%clk 0:02:29.7]}
15... Bc6 {[%clk 0:01:50.5]} 16. Qe2 {[%clk 0:02:20.9]} 16... Nb8 {[%clk
0:01:44.1]} 17. a5 {[%clk 0:02:03.3]} 17... b5 {[%clk 0:01:43.3]} 18. Ncd2
{[%clk 0:02:03.3]} 18... Qb7 {[%clk 0:01:40.3]} 19. Rec1 {[%clk 0:01:33.9]}
19... Nbd7 {[%clk 0:01:39.8]} 20. b3 {[%clk 0:01:32.8]} 20... Nd5 {[%clk
0:01:34.5]} 21. c4 {[%clk 0:01:30.9]} 21... Nb4 {[%clk 0:01:33.3]} 22. Bb1
{[%clk 0:01:20.6]} 22... Nf6 {[%clk 0:01:31.6]} 23. d5 {[%clk 0:01:13]} 23...
exd5 {[%clk 0:01:27.3]} 24. Nd4 {[%clk 0:01:13.3]} 24... dxc4 {[%clk 0:01:19.5]}
25. Nxc6 {[%clk 0:01:10.4]} 25... Rxc6 {[%clk 0:01:12.4]} 26. bxc4 {[%clk
0:01:10.5]} 26... d5 {[%clk 0:01:11.5]} 27. Re1 {[%clk 0:00:57]} 27... Re6
{[%clk 0:01:11.3]} 28. Qd1 {[%clk 0:00:47.2]} 28... Rxe1+ {[%clk 0:01:08.3]} 29.
Qxe1 {[%clk 0:00:48.1]} 29... dxc4 {[%clk 0:01:08.9]} 30. Ne4 {[%clk 0:00:46.5]}
30... Nd3 {[%clk 0:01:00.4]} 31. Bxd3 {[%clk 0:00:38.6]} 31... cxd3 {[%clk
0:01:01.3]} 32. Nxf6+ {[%clk 0:00:34.7]} 32... Bxf6 {[%clk 0:01:02.2]} 33. Rd1
{[%clk 0:00:35.1]} 33... Qd5 {[%clk 0:00:56.1]} 34. Qe3 {[%clk 0:00:26.8]} 34...
Rd8 {[%clk 0:00:46]} 35. Bc7 {[%clk 0:00:26.8]} 35... Rd7 {[%clk 0:00:41.9]} 36.
Bb6 {[%clk 0:00:27.3]} 36... Bg5 {[%clk 0:00:29]} 37. Qe8+ {[%clk 0:00:25.2]}
37... Kh7 {[%clk 0:00:29.3]} 38. Qc8 {[%clk 0:00:17.2]} 38... Re7 {[%clk
0:00:23.5]} 39. h4 {[%clk 0:00:05.2]} 39... Bxh4 {[%clk 0:00:17.8]} 40. Qh3
{[%clk 0:00:05.9]} 40... d2 {[%clk 0:00:14.9]} 41. Be3 {[%clk 0:00:03.1]} 41...
Bg5 {[%clk 0:00:11.3]} 42. Rxd2 {[%clk 0:00:03.7]} 42... Qe6 {[%clk 0:00:10.4]}
43. Qxe6 {[%clk 0:00:03]} 43... Rxe6 {[%clk 0:00:11.3]} 44. Bxg5 {[%clk
0:00:02.9]} 44... hxg5 {[%clk 0:00:12.2]} 45. Rd7 {[%clk 0:00:03.2]} 45... Re1+
{[%clk 0:00:10.3]} 46. Kh2 {[%clk 0:00:03.4]} 46... Ra1 {[%clk 0:00:10.8]} 47.
Rxf7 {[%clk 0:00:03.2]} 47... Rxa5 {[%clk 0:00:11.5]} 48. g4 {[%clk 0:00:03.3]}
48... b4 {[%clk 0:00:11.4]} 49. Kg3 {[%clk 0:00:03.5]} 49... b3 {[%clk
0:00:11.6]} 0-1

[Event "Early-Titled-Tuesday-Blitz-June-18-2024"]
[Site "Chess.com"]
[Date "2024.06.18"]
[Round "5"]
[White "azikom"]
[Black "rollercoaster29"]
[Result "1/2-1/2"]
[WhiteElo "2694"]
[BlackElo "2517"]
[TimeControl "180+1"]
[EndTime "8:58:31 PDT"]
[Termination "Game drawn - insufficient material"]

1. c4 {[%clk 0:03:00.1]} 1... Nf6 {[%clk 0:02:59.4]} 2. Nc3 {[%clk 0:02:59.9]}
2... g6 {[%clk 0:02:54.2]} 3. e4 {[%clk 0:03:00]} 3... d6 {[%clk 0:02:54.5]} 4.
d4 {[%clk 0:03:00.3]} 4... Bg7 {[%clk 0:02:54.8]} 5. Bg5 {[%clk 0:03:00.4]} 5...
O-O {[%clk 0:02:54.7]} 6. Qd2 {[%clk 0:03:00.1]} 6... c5 {[%clk 0:02:54.6]} 7.
d5 {[%clk 0:02:59.9]} 7... a6 {[%clk 0:02:49.1]} 8. a4 {[%clk 0:02:58.9]} 8...
Nbd7 {[%clk 0:02:48.3]} 9. Nf3 {[%clk 0:02:52.5]} 9... Re8 {[%clk 0:02:37.5]}
10. Bd3 {[%clk 0:02:48.8]} 10... Nf8 {[%clk 0:02:35.1]} 11. O-O {[%clk
0:02:47.9]} 11... e5 {[%clk 0:02:31.3]} 12. a5 {[%clk 0:02:43.8]} 12... Qc7
{[%clk 0:02:27.8]} 13. Rfb1 {[%clk 0:02:36.3]} 13... Nh5 {[%clk 0:02:15.7]} 14.
g3 {[%clk 0:02:17.1]} 14... b6 {[%clk 0:01:55.2]} 15. axb6 {[%clk 0:02:16.5]}
15... Qxb6 {[%clk 0:01:56.1]} 16. Ne1 {[%clk 0:02:12.4]} 16... f5 {[%clk
0:01:47.1]} 17. exf5 {[%clk 0:02:11.6]} 17... gxf5 {[%clk 0:01:46.1]} 18. Bh6
{[%clk 0:02:12]} 18... Nf4 {[%clk 0:01:14.3]} 19. Bxg7 {[%clk 0:02:06.5]} 19...
Nxd3 {[%clk 0:01:14.2]} 20. Bxf8 {[%clk 0:01:27.5]} 20... Nxe1 {[%clk
0:01:13.3]} 21. Qg5+ {[%clk 0:01:12.2]} 21... Kxf8 {[%clk 0:01:12.5]} 22. Rxe1
{[%clk 0:00:59.3]} 22... Qc7 {[%clk 0:01:09.1]} 23. Qh6+ {[%clk 0:00:56.6]}
23... Kg8 {[%clk 0:01:06.7]} 24. Nb5 {[%clk 0:00:56.9]} 24... axb5 {[%clk
0:00:48.5]} 25. Rxa8 {[%clk 0:00:57.8]} 25... bxc4 {[%clk 0:00:48.6]} 26. Rea1
{[%clk 0:00:57.1]} 26... Bd7 {[%clk 0:00:34.5]} 27. Rxe8+ {[%clk 0:00:54.7]}
27... Bxe8 {[%clk 0:00:34]} 28. Ra8 {[%clk 0:00:45.9]} 28... Qe7 {[%clk
0:00:29.4]} 29. h4 {[%clk 0:00:43.5]} 29... e4 {[%clk 0:00:23.2]} 30. Ra6 {[%clk
0:00:24.4]} 30... Bg6 {[%clk 0:00:22.1]} 31. Qg5 {[%clk 0:00:18.8]} 31... Qxg5
{[%clk 0:00:14.3]} 32. hxg5 {[%clk 0:00:18.6]} 32... Kf7 {[%clk 0:00:15.2]} 33.
Rxd6 {[%clk 0:00:18.3]} 33... Ke7 {[%clk 0:00:15.9]} 34. Rc6 {[%clk 0:00:18]}
34... Bf7 {[%clk 0:00:15.4]} 35. Rxc5 {[%clk 0:00:17.3]} 35... Kd6 {[%clk
0:00:15.9]} 36. Rxc4 {[%clk 0:00:17.3]} 36... Bxd5 {[%clk 0:00:16.6]} 37. Rd4
{[%clk 0:00:17.2]} 37... Ke5 {[%clk 0:00:16.8]} 38. Rxd5+ {[%clk 0:00:15.6]}
38... Kxd5 {[%clk 0:00:17.1]} 39. Kf1 {[%clk 0:00:16.1]} 39... Kc4 {[%clk
0:00:17.4]} 40. Ke2 {[%clk 0:00:16.5]} 40... Kb3 {[%clk 0:00:17.8]} 41. Ke3
{[%clk 0:00:17]} 41... Kxb2 {[%clk 0:00:17.5]} 42. Kf4 {[%clk 0:00:17.3]} 42...
Kc3 {[%clk 0:00:18]} 43. Kxf5 {[%clk 0:00:17.9]} 43... Kd3 {[%clk 0:00:18.9]}
44. g4 {[%clk 0:00:15.3]} 44... Kd4 {[%clk 0:00:18.1]} 45. Kf4 {[%clk 0:00:15]}
45... Kd3 {[%clk 0:00:17.7]} 46. Ke5 {[%clk 0:00:14.3]} 46... e3 {[%clk
0:00:15.4]} 47. fxe3 {[%clk 0:00:14.4]} 47... Kxe3 {[%clk 0:00:15.9]} 48. Kf6
{[%clk 0:00:13.3]} 48... Kf4 {[%clk 0:00:16.1]} 49. Kg7 {[%clk 0:00:11.3]} 49...
Kxg5 {[%clk 0:00:16]} 50. Kxh7 {[%clk 0:00:11.2]} 50... Kxg4 {[%clk 0:00:16.9]}
1/2-1/2

[Event "Early-Titled-Tuesday-Blitz-June-18-2024"]
[Site "Chess.com"]
[Date "2024.06.18"]
[Round "5"]
[White "ShahMatKanal"]
[Black "Journey_to_GrandMaster_YT"]
[Result "0-1"]
[WhiteElo "2470"]
[BlackElo "2644"]
[TimeControl "180+1"]
[EndTime "8:58:31 PDT"]
[Termination "Journey_to_GrandMaster_YT won on time"]

1. f4 {[%clk 0:02:59.9]} 1... d6 {[%clk 0:03:00.9]} 2. e4 {[%clk 0:02:58]} 2...
Nf6 {[%clk 0:03:00.6]} 3. Nc3 {[%clk 0:02:56.7]} 3... c5 {[%clk 0:03:01.1]} 4.
Nf3 {[%clk 0:02:50.5]} 4... Nc6 {[%clk 0:02:59.9]} 5. Be2 {[%clk 0:02:48.2]}
5... g6 {[%clk 0:02:59.9]} 6. O-O {[%clk 0:02:41.9]} 6... Bg7 {[%clk 0:03:00.5]}
7. d3 {[%clk 0:02:39.8]} 7... O-O {[%clk 0:03:01.1]} 8. Kh1 {[%clk 0:02:39]}
8... Nd4 {[%clk 0:02:59]} 9. Be3 {[%clk 0:02:36.8]} 9... Nxe2 {[%clk 0:02:45.7]}
10. Qxe2 {[%clk 0:02:33.4]} 10... b5 {[%clk 0:02:36.5]} 11. Rae1 {[%clk
0:02:20.9]} 11... b4 {[%clk 0:02:36.1]} 12. Nd1 {[%clk 0:02:20.9]} 12... Bb7
{[%clk 0:02:29.3]} 13. f5 {[%clk 0:02:12.5]} 13... Rc8 {[%clk 0:02:18.5]} 14. b3
{[%clk 0:02:02.1]} 14... a5 {[%clk 0:02:10.6]} 15. Qd2 {[%clk 0:01:51.4]} 15...
Ng4 {[%clk 0:02:02.8]} 16. Bg5 {[%clk 0:01:47.6]} 16... Qd7 {[%clk 0:01:56.4]}
17. h3 {[%clk 0:01:42.2]} 17... Ne5 {[%clk 0:01:55.1]} 18. Bh6 {[%clk 0:01:39]}
18... f6 {[%clk 0:01:35]} 19. Bxg7 {[%clk 0:01:38.4]} 19... Kxg7 {[%clk
0:01:34.3]} 20. fxg6 {[%clk 0:01:36.9]} 20... hxg6 {[%clk 0:01:34.1]} 21. Ne3
{[%clk 0:01:33.1]} 21... Rh8 {[%clk 0:01:32.8]} 22. Nxe5 {[%clk 0:01:31.8]}
22... dxe5 {[%clk 0:01:30.9]} 23. Qf2 {[%clk 0:01:24.7]} 23... Rh5 {[%clk
0:01:23.9]} 24. Kg1 {[%clk 0:01:17]} 24... Rch8 {[%clk 0:01:19.8]} 25. Qg3
{[%clk 0:01:14]} 25... Rg5 {[%clk 0:01:19]} 26. Qf2 {[%clk 0:00:57.9]} 26...
Qxh3 {[%clk 0:01:11.5]} 27. Qf3 {[%clk 0:00:49.7]} 27... Rg3 {[%clk 0:00:52.9]}
28. Qe2 {[%clk 0:00:22.3]} 28... Qh2+ {[%clk 0:00:51.4]} 29. Kf2 {[%clk
0:00:22.1]} 29... Qh4 {[%clk 0:00:52]} 30. Kg1 {[%clk 0:00:19.6]} 30... Bc8
{[%clk 0:00:43.2]} 31. Rf3 {[%clk 0:00:18.1]} 31... Rxf3 {[%clk 0:00:35.3]} 32.
gxf3 {[%clk 0:00:13.8]} 32... Qh1+ {[%clk 0:00:35.3]} 33. Kf2 {[%clk 0:00:14.1]}
33... Rh2+ {[%clk 0:00:35.6]} 34. Kg3 {[%clk 0:00:13.6]} 34... Rh3+ {[%clk
0:00:23.1]} 35. Kf2 {[%clk 0:00:12.9]} 35... Qh2+ {[%clk 0:00:21.4]} 36. Ng2
{[%clk 0:00:12.3]} 36... Rg3 {[%clk 0:00:18.7]} 37. Rg1 {[%clk 0:00:12.2]} 37...
Bh3 {[%clk 0:00:18.2]} 38. Qf1 {[%clk 0:00:12.3]} 38... Kh6 {[%clk 0:00:13.9]}
39. Rh1 {[%clk 0:00:05.6]} 39... Rxg2+ {[%clk 0:00:12.5]} 40. Ke1 {[%clk
0:00:02.5]} 40... Qg3+ {[%clk 0:00:11.5]} 41. Kd1 {[%clk 0:00:03]} 41... Rh2
{[%clk 0:00:07.4]} 42. Rxh2 {[%clk 0:00:02.1]} 42... Qxh2 {[%clk 0:00:07.8]} 43.
Qe1 {[%clk 0:00:01.8]} 43... Qg2 {[%clk 0:00:07.5]} 44. Qe2 {[%clk 0:00:01.5]}
44... Qxe2+ {[%clk 0:00:07.3]} 45. Kxe2 {[%clk 0:00:01.9]} 45... Kg5 {[%clk
0:00:08.2]} 46. Ke3 {[%clk 0:00:01.7]} 46... f5 {[%clk 0:00:07.6]} 0-1

[Event "Early-Titled-Tuesday-Blitz-June-18-2024"]
[Site "Chess.com"]
[Date "2024.06.18"]
[Round "5"]
[White "Fore_Man"]
[Black "ClauAmura"]
[Result "0-1"]
[WhiteElo "2163"]
[BlackElo "2387"]
[TimeControl "180+1"]
[EndTime "8:58:32 PDT"]
[Termination "ClauAmura won by resignation"]

1. Nf3 {[%clk 0:02:56.5]} 1... d5 {[%clk 0:02:56.5]} 2. g3 {[%clk 0:02:57]} 2...
c6 {[%clk 0:02:55.7]} 3. Bg2 {[%clk 0:02:57.6]} 3... Bf5 {[%clk 0:02:55.9]} 4.
d4 {[%clk 0:02:58.2]} 4... e6 {[%clk 0:02:56.4]} 5. O-O {[%clk 0:02:58.6]} 5...
Nf6 {[%clk 0:02:56.4]} 6. Nh4 {[%clk 0:02:56]} 6... Bg6 {[%clk 0:02:55.5]} 7.
Nxg6 {[%clk 0:02:52.9]} 7... hxg6 {[%clk 0:02:55.2]} 8. Nc3 {[%clk 0:02:53.6]}
8... Nbd7 {[%clk 0:02:54.1]} 9. e4 {[%clk 0:02:53.8]} 9... dxe4 {[%clk
0:02:53.7]} 10. Nxe4 {[%clk 0:02:54.7]} 10... Nxe4 {[%clk 0:02:54.2]} 11. Bxe4
{[%clk 0:02:55.6]} 11... Nf6 {[%clk 0:02:54.6]} 12. Bg2 {[%clk 0:02:56.1]} 12...
Be7 {[%clk 0:02:51.4]} 13. c3 {[%clk 0:02:55.8]} 13... a5 {[%clk 0:02:45.1]} 14.
Re1 {[%clk 0:02:55.6]} 14... a4 {[%clk 0:02:44.3]} 15. Bg5 {[%clk 0:02:47.7]}
15... Qa5 {[%clk 0:02:43.3]} 16. Bxf6 {[%clk 0:02:47.4]} 16... gxf6 {[%clk
0:02:37.1]} 17. Qc2 {[%clk 0:02:31.5]} 17... f5 {[%clk 0:02:28.3]} 18. c4 {[%clk
0:02:22]} 18... O-O {[%clk 0:02:07.1]} 19. d5 {[%clk 0:02:21.2]} 19... cxd5
{[%clk 0:02:02.2]} 20. cxd5 {[%clk 0:02:22.1]} 20... Bb4 {[%clk 0:01:57]} 21.
Red1 {[%clk 0:02:21.6]} 21... e5 {[%clk 0:01:56.5]} 22. d6 {[%clk 0:02:15.8]}
22... e4 {[%clk 0:01:54.5]} 23. d7 {[%clk 0:02:12.7]} 23... Rad8 {[%clk
0:01:53.5]} 24. f3 {[%clk 0:02:12.6]} 24... exf3 {[%clk 0:01:34.8]} 25. Bxf3
{[%clk 0:02:13.5]} 25... Qb5 {[%clk 0:01:35.4]} 26. Qd3 {[%clk 0:02:12.5]} 26...
Bc5+ {[%clk 0:01:32.7]} 27. Kh1 {[%clk 0:02:10.7]} 27... Qxb2 {[%clk 0:01:32.4]}
28. Qd5 {[%clk 0:02:05.1]} 28... Qf2 {[%clk 0:01:29.5]} 29. Qxb7 {[%clk
0:01:55.4]} 29... Bd4 {[%clk 0:01:21.9]} 30. Rab1 {[%clk 0:01:50.9]} 30... Rxd7
{[%clk 0:01:21]} 31. Qc6 {[%clk 0:01:45.8]} 31... Rfd8 {[%clk 0:01:05.3]} 32.
Rf1 {[%clk 0:01:44.3]} 32... Qxa2 {[%clk 0:01:00.9]} 33. Rbd1 {[%clk 0:01:42.5]}
33... Rd6 {[%clk 0:00:57.4]} 34. Qb5 {[%clk 0:01:38.3]} 34... a3 {[%clk
0:00:54.6]} 35. Rfe1 {[%clk 0:01:30.7]} 35... Qf2 {[%clk 0:00:52.3]} 36. Rf1
{[%clk 0:01:31.1]} 36... Qe3 {[%clk 0:00:51.7]} 37. Rde1 {[%clk 0:01:30.2]}
37... Qg5 {[%clk 0:00:48.4]} 38. Re8+ {[%clk 0:01:29.5]} 38... Kg7 {[%clk
0:00:44.4]} 39. Rxd8 {[%clk 0:01:27.2]} 39... Rxd8 {[%clk 0:00:43.6]} 40. Qb3
{[%clk 0:01:26.8]} 40... Qe7 {[%clk 0:00:39.1]} 41. Rd1 {[%clk 0:01:21.2]} 41...
Bc5 {[%clk 0:00:34.8]} 42. Rc1 {[%clk 0:01:15.7]} 42... Bd4 {[%clk 0:00:16.7]}
43. Rd1 {[%clk 0:01:04]} 43... Bf6 {[%clk 0:00:16.3]} 44. Rf1 {[%clk 0:00:58.4]}
44... Qd6 {[%clk 0:00:16]} 45. Rd1 {[%clk 0:00:56.7]} 45... Qe7 {[%clk
0:00:15.4]} 46. Rf1 {[%clk 0:00:56.7]} 46... Qe6 {[%clk 0:00:15.2]} 47. Qxa3
{[%clk 0:00:54.9]} 47... Rc8 {[%clk 0:00:15.8]} 48. Qa5 {[%clk 0:00:30.7]} 48...
Rc3 {[%clk 0:00:15.5]} 49. Qd5 {[%clk 0:00:30.4]} 49... Qe3 {[%clk 0:00:13.7]}
50. Bg2 {[%clk 0:00:29]} 50... Rc1 {[%clk 0:00:13.4]} 51. Qa8 {[%clk 0:00:14]}
51... Bd4 {[%clk 0:00:12.3]} 52. Qa6 {[%clk 0:00:12.3]} 52... Qg1+ {[%clk
0:00:12.1]} 0-1